Cogmind - Beta 13 @@@ ROGUE MODE // 2024.08.05 @ 19:48:16 Player: Wotf Result: Destroyed by 09-QYW(R) with Subdweller Laser Performance ------------- Evolutions (0) 0 Regions Visited (2) 400 Robots Destroyed (36) 180 Value Destroyed (930) 930 Prototype IDs (0) 0 Alien Tech Used (0) 0 Bonus (0) 0 TOTAL SCORE: 1510 Bonus ------- None Cogmind --------- Core Integrity 0/250 Matter 41/300 Energy 200/200 System Corruption 3% Temperature Cool (6) Movement Rolling (131) Ox3 Location -10/Subcaves Parts ------- > --- POWER (1) -------- Subdweller Power Source > --- PROPULSION (2) --- Wheel Subdweller Monowheel > --- UTILITY (2) ------ Huge Storage Unit Signal Interpreter > --- WEAPON (2) ------- Grenade Launcher Grenade Launcher > --- INVENTORY (25) --- Ion Engine Light Ion Engine Subdweller Power Source Aluminum Leg Aluminum Leg Aluminum Leg Improved Heat Sink Small Storage Unit Medium Matter Pod (100) Medium Matter Pod (100) Medium Matter Pod (100) Structural Scanner Terrain Scan Processor ECM Suite Scrap Shield Tractor Beam Subdweller Beam Cannon Assault Rifle Assault Rifle Battle Cannon Datajack Mining Laser Welding Torch Peak State ------------ > --- POWER ------------ Subdweller Power Source > --- PROPULSION ------- Subdweller Monowheel Subdweller Monowheel > --- UTILITY ---------- Huge Storage Unit Signal Interpreter > --- WEAPON ----------- Grenade Launcher Grenade Launcher > --- INVENTORY -------- Ion Engine Light Ion Engine Subdweller Power Source Aluminum Leg Aluminum Leg Aluminum Leg Wheel Subdweller Monowheel Improved Heat Sink Small Storage Unit Medium Matter Pod Medium Matter Pod Medium Matter Pod Structural Scanner Terrain Scan Processor ECM Suite Tractor Beam Small Laser Subdweller Beam Cannon Assault Rifle Assault Rifle Assault Rifle Datajack Mining Laser Welding Torch [Rating: 13] Favorites ----------- Power Ion Engine Engine Ion Engine Propulsion Wheel Leg Aluminum Leg Wheel Wheel Utility Signal Interpreter Storage Huge Storage Unit Processor Signal Interpreter Weapon Assault Rifle Energy Gun EM Pulse Gun Ballistic Gun Assault Rifle Launcher Grenade Launcher Build | -11 -10 -10 ------- Run | Yrd Mat Sub Slots Evolved . | . . . Power . | . . . Propulsion . | . . . Utility . | . . . Weapon . | . . . Parts Attached 30 | 6 12 12 Power 5 | 1 . 4 Engine 5 | 1 . 4 Core . | . . . Reactor . | . . . Propulsion 11 | 2 5 4 Treads . | . . . Leg 5 | 2 3 . Wheel 6 | . 2 4 Hover . | . . . Flight . | . . . Utility 3 | 1 2 . Device . | . . . Storage 2 | 1 1 . Processor 1 | . 1 . Hackware . | . . . Protection . | . . . Artifact . | . . . Weapon 11 | 2 5 4 Energy Gun 2 | 2 . . Energy Cannon . | . . . Ballistic Gun 4 | . 4 . Ballistic Cannon . | . . . Launcher 5 | . 1 4 Special Weapon . | . . . Impact Weapon . | . . . Slashing Weapon . | . . . Piercing Weapon . | . . . Special Melee Weapon . | . . . Unidentified Prototypes . | . . . Parts Lost 5 | . 1 4 Power 1 | . . 1 Propulsion 1 | . . 1 Utility . | . . . Weapon 3 | . 1 2 Highest Loss Streak 2 | . 1 2 To Critical Strikes . | . . . Average Slot Usage (%) 97 | . 96 98 Engine 13 | . 14 12 Leg 8 | . 14 . Wheel 19 | . 13 27 Storage 14 | . 14 14 Processor 12 | . 11 14 Energy Gun 2 | . 4 . Ballistic Gun 15 | . 19 8 Launcher 10 | . 3 19 Naked Turns . | . . . Heaviest Build 91 | 13 90 91 Greatest Support 40 | 20 20 40 Greatest Overweight (x) 4 | 1 4 4 Average Overweight (x) 2 | . 1 2 Largest Inventory Capacity 25 | 8 25 25 Average Capacity 19 | 7 16 25 Most Carried 25 | 8 25 25 Average Carried 18 | 5 14 24 Final Capacity 25 | 8 25 25 Final Carried 25 | 8 25 24 Class Distribution -------------------- 89% | Mutant 10% | Scavenger-Mutant Dominant Class ---------------- Mutant | -10/Materials Mutant | -10/Subcaves Resources | -11 -10 -10 ----------- Run | Yrd Mat Sub Matter Collected 1050 | 260 606 184 Remotely . | . . . Salvage Created 1044 | 95 702 247 Parts 73 | 6 48 19 Haulers Intercepted . | . . . Recyclers Shooed 1 | . 1 . Parts Field Recycled . | . . . Retrieved Matter . | . . . Parts Self-Destructed 9 | . . 9 Prevented . | . . . Kills | -11 -10 -10 ------- Run | Yrd Mat Sub Combat Hostiles Destroyed 27 | . 17 10 Guns 12 | . 11 1 AOE 15 | . 6 9 Classes Destroyed 9 | 2 6 1 Worker 1 | . 1 . Builder 1 | . 1 . Tunneler 1 | 1 . . Recycler 3 | 1 2 . Operator 1 | . 1 . Watcher 2 | . 2 . Swarmer 6 | . 6 . Grunt 12 | . 11 1 Subdweller 9 | . . 9 Best Kill Streak 8 | 2 8 4 Combat Bots Only 7 | . 7 4 Max Kills in Single Turn 2 | 2 2 2 Gunslinging . | . . . Exploded 2 | . 2 2 Melee . | . . . Uniques/NPCs Destroyed . | . . . Combat | -11 -10 -10 -------- Run | Yrd Mat Sub Hostile Shots Fired 84 | . 45 39 Missed 17 | . 7 10 Damage Taken 947 | . 355 592 Core 266 | . 68 198 Absorbed by Shields . | . . . Core Remaining (%) 100 | 100 . . Volleys Fired 74 | 2 48 24 Largest 2 | 2 2 2 Hottest 80 | 80 60 60 Shots Fired 142 | 4 94 44 Gun 111 | 4 89 18 Cannon . | . . . Launcher 31 | . 5 26 Special . | . . . Kinetic 88 | . 70 18 Thermal 2 | 2 . . Explosive 31 | . 5 26 Electromagnetic 21 | 2 19 . Robot Hit Streak 18 | 1 7 18 Robot Miss Streak 10 | 2 10 1 Penetration Max . | . . . Secondary Targets . | . . . Shots Hit Robots 78 | 1 49 28 Core Hits 54 | 2 34 18 Critical Kills . | . . . Critical Parts Destroyed 1 | . 1 . Critical Strikes 1 | . 1 . Destroy 1 | . 1 . Melee Attacks . | . . . Impact . | . . . Slashing . | . . . Piercing . | . . . Sneak Attacks . | . . . Combat Hostiles . | . . . Follow-up Attacks . | . . . Damage Inflicted 2300 | 27 1052 1221 Guns 816 | 27 582 207 Cannons . | . . . Explosions 1484 | . 470 1014 Melee . | . . . Ramming . | . . . Kinetic 636 | . 429 207 Thermal 58 | 12 46 . Explosive 1438 | . 424 1014 Electromagnetic 168 | 15 153 . Impact . | . . . Slashing . | . . . Piercing . | . . . Highest Corruption 3 | . 3 3 Average Corruption 2 | . 1 3 Corruption Purged . | . . . Corruption Blocked . | . . . Effects 25 | . 5 20 Message Errors 4 | . . 4 Matter Fused 3 | . . 3 Heat Flow Errors 2 | . 1 1 Energy Discharges 5 | . . 5 Data Loss (minor) 6 | . 1 5 Data Loss (major) 1 | . 1 . Misfires 1 | . 1 . Alerts 2 | . . 2 Weapon Failures 1 | . 1 . Overload Shots . | . . . Overflow Damage 29 | . . 29 Projectiles . | . . . Explosions 29 | . . 29 Melee . | . . . Knockbacks . | . . . Impact . | . . . Kinetic . | . . . Secondary . | . . . Self-Inflicted Damage 55 | . . 55 Shots 3 | . . 3 Rammed . | . . . Targets Rammed . | . . . Kicked . | . . . Crushed . | . . . Highest Temperature 261 | 36 261 194 Average Temperature 64 | 20 66 114 Received Heat Transfer 252 | . 87 165 Siege Activations . | . . . Robots Corrupted . | . . . Combat Hostiles . | . . . Parts Fried . | . . . Impact Corruptions . | . . . Robots Melted . | . . . Combat Hostiles . | . . . Parts Melted . | . . . Heat Transferred 25 | 25 . . Parts Sabotaged . | . . . Parts Stolen . | . . . Parts Stripped . | . . . Power Chain Reactions 1 | . 1 . Alert | -11 -10 -10 ------- Run | Yrd Mat Sub Peak Influence 380 | 10 380 . Initial 6 | . 6 . Average 175 | 4 188 . Maximum Alert Level 1 | . 1 . Low Security (%) 66 | 100 63 . Level 1 33 | . 36 . Level 2 . | . . . Level 3 . | . . . Level 4 . | . . . Level 5 . | . . . High Security . | . . . Max Security . | . . . Squads Dispatched 3 | . 3 . Investigation 2 | . 2 . Extermination . | . . . Reinforcement 1 | . 1 . Assault . | . . . Garrison . | . . . Intercept . | . . . Searches Triggered . | . . . Construction Impeded . | . . . Haulers Reinforced . | . . . Active Scanning Responses . | . . . Cargo Convoy Interrupts . | . . . Stealth | -11 -10 -10 --------- Run | Yrd Mat Sub Distress Signals 2 | . 2 . Communications Jammed . | . . . Distress Signals . | . . . Times Spotted 36 | . 25 11 Peak Tracking Total 4 | . 4 4 Tactical Retreats . | . . . Traps | -11 -10 -10 ------- Run | Yrd Mat Sub Traps Triggered 4 | . 4 . Indirectly . | . . . Trap Hack Attempts . | . . . Triggered . | . . . Disarmed . | . . . Reprogrammed . | . . . Reused . | . . . Traps Extracted . | . . . Installed . | . . . Triggered . | . . . Machines | -11 -10 -10 ---------- Run | Yrd Mat Sub Machines Disabled 1 | . 1 . Max in Single Turn 1 | . 1 . Machines Repaired . | . . . Machines Dismantled . | . . . Machines Sabotaged . | . . . Overloaded Fab Kills . | . . . Hacking | -11 -10 -10 --------- Run | Yrd Mat Sub Machines Accessed 3 | . 3 . Terminals 2 | . 2 . Fabricators . | . . . Repair Stations . | . . . Recycling Units 1 | . 1 . Scanalyzers . | . . . Garrison Access . | . . . Total Hacks 8 | . 8 . Successful 5 | . 5 . Failed 3 | . 3 . Catastrophic 1 | . 1 . Database Lockouts . | . . . Manual 7 | . 7 . Terminals 5 | . 5 . Fabricators . | . . . Repair Stations . | . . . Recycling Units 3 | . 3 . Scanalyzers . | . . . Garrison Access . | . . . Terminal Hacks 1 | . 1 . Robot Analysis 1 | . 1 . Fabricator Hacks . | . . . Repair Station Hacks . | . . . Recycling Unit Hacks 3 | . 3 . Retrieve Matter 1 | . 1 . Retrieve Components 2 | . 2 . Scanalyzer . | . . . Garrison Access Hacks . | . . . Unauthorized Hacks 1 | . 1 . Terminals 1 | . 1 . Operators 1 | . 1 . Fabricators . | . . . Repair Stations . | . . . Recycling Units . | . . . Scanalyzers . | . . . Garrison Access . | . . . Data Cores Recovered . | . . . Used . | . . . Hacking Detections 3 | . 3 . Full Trace Events . | . . . Feedback Events . | . . . Feedback Blocked . | . . . Robot Schematics Acquired . | . . . Robots Built . | . . . Authchips . | . . . Time . | . . . Total Robot Build Rating . | . . . Part Schematics Acquired . | . . . Parts Built . | . . . Authchips . | . . . Time . | . . . Total Part Build Rating . | . . . Parts Repaired . | . . . Time . | . . . Parts Recycled . | . . . Recycled Matter . | . . . Retrieved Matter 65 | . 65 . Retrieved Components 9 | . 9 . Parts Scanalyzed . | . . . Part Schematics Acquired . | . . . Parts Damaged . | . . . Bothacking | -11 -10 -10 ------------ Run | Yrd Mat Sub Used RIF Installer . | . . . Robots Hacked . | . . . Non-combat . | . . . Combat . | . . . Robot Hacks Applied . | . . . Relay Couplers Released . | . . . Fabnet Peak Effective % . | . . . Robots Rewired . | . . . Allies Hacked . | . . . Hacks Repelled . | . . . Allies | -11 -10 -10 -------- Run | Yrd Mat Sub Total Allies . | . . . Largest Group . | . . . Highest-Rated Group . | . . . Highest-Rated Ally . | . . . Total Orders . | . . . Ally Attacks . | . . . Total Damage . | . . . Kills . | . . . Allies Corrupted . | . . . Allies Melted . | . . . Intel | -11 -10 -10 ------- Run | Yrd Mat Sub Robot Analysis Total 1 | . 1 . Derelict Logs Recovered . | . . . Drone Launches . | . . . Drone Recoveries . | . . . Exploration | -11 -10 -10 ------------- Run | Yrd Mat Sub Turns Passed 2280 | 94 1265 921 Spaces Moved 1493 | 59 810 624 Core 3 | 3 . . Treads . | . . . Legs 485 | 56 429 . Wheels 1005 | . 381 624 Hover . | . . . Flight . | . . . Fastest Speed 50 | 50 120 119 Average Speed 130 | 121 131 130 Slowest Speed 400 | 190 400 150 Overloaded Moves . | . . . Propulsion Burnouts . | . . . Robots Hopped . | . . . Cave-ins Triggered . | . . . Exploration Rate (%) 38 | 4 86 26 Regions Visited 2 Branch Regions 1 Pre-discovered Areas . | . . . Known Exits Taken 1 | . 1 . Unknown Exits Taken 1 | 1 . . Scrap Searched . | . . . Spaces Dug . | . . . Terrain Destroyed 147 | . 36 111 Melee . | . . . Projectile . | . . . AOE 147 | . 36 111 Terrain Rammed . | . . . Walls Destroyed . | . . . Machines Disabled . | . . . Actions | -11 -10 -10 --------- Run | Yrd Mat Sub Total 1690 | 76 924 690 Wait 26 | . 12 14 Move 1491 | 58 809 624 Hop . | . . . Pick Up 44 | 9 28 7 Fast Attach 8 | 6 2 . Attach 7 | . 1 6 Detach . | . . . Swap 15 | . 9 6 Drop 25 | 1 15 9 Fire 74 | 2 48 24 Melee . | . . . Ram . | . . . Kick . | . . . Crush . | . . . Escape Stasis . | . . . Rewire . | . . . Trap . | . . . Miscellaneous . | . . . Route ------- -11/Scrapyard -10/Materials (discovered 5 exits: [*Mat x2] / *Min x2 / *Sub) -10/Subcaves (discovered 1 exit: *Mat) History --------- Turn | Location | Event 13 | -11/Scrapyard | Discovered new exit (range 15) 95 | -11/Scrapyard | Entered Materials 318 | -10/Materials | Build established: Mutant 477 | -10/Materials | Discovered new exit (range 16) 484 | -10/Materials | Destroyed 7 combat bots 512 | -10/Materials | Discovered new exit (range 8) 626 | -10/Materials | Discovered new exit (range 12) 642 | -10/Materials | Identified exit to Mines 959 | -10/Materials | Discovered new exit (range 14) 1249 | -10/Materials | Discovered new exit (range 9) 1358 | -10/Materials | Identified exit to Subcaves 1360 | -10/Materials | Entered Subcaves 1460 | -10/Subcaves | Discovered new exit (range 9) 1468 | -10/Subcaves | Identified exit to Materials 1481 | -10/Subcaves | A swath of the cavern ceiling suddenly collapsed 1758 | -10/Subcaves | Core integrity fell below 50% 1808 | -10/Subcaves | Core integrity fell below 20% 2186 | -10/Subcaves | Shifting Twisted Machinery released Sub. Optics 2278 | -10/Subcaves | Ambushed by Subdweller buried in earth 2281 | -10/Subcaves | Destroyed by 09-QYW(R) with Subdweller Laser Last Messages --------------- Subatomizers dissect the Sub. Beam Cannon. The unstable cave ceiling collapses. Sub. Laser crushed. Dropped Sml. Laser. Subatomizers dissect the Sml. Laser. Dropped Sub. Power Source. Acquired Scrap Shield. Subatomizers dissect the Sml. Laser. Subatomizers dissect the Sub. Beam Cannon. Sub. Monowheel shoots sparks and powers down. System corrupted: IFF burst signal emitted. Subatomizers dissect the Sub. Power Source. Sub. Optics falls loose from the Twisted Machinery. Dropped Broken Sub. Monowheel. System corrupted: Energy discharge (-72). System corrupted: Energy discharge (-66). The unstable cave ceiling collapses. UK-VTG(u) tweaks Twisted Machinery. 09-QYW(R): "FREEEEDUMB!" Map ----- +----------------------------------------------------+ | | | | | | | | | | | | | | | | | ?????????????????????????????????????????????????? | | ?????????????????????????????????????????????????? | | ?????????????????????????????????????????????????? | | ?????????????????????????????????????????????????? | | ?????????????????????????????????????????????????? | | ?????????????????????????????????????????????????? | | ?????????????????????????????????????????????????? | | ?????????????????????????????????????????????????? | | ?????????????????????????????????????????????????? | | ?????????????????????????????????????????????????? | | ?????????????????????????????????????????????????? | | ?????????????????????????????????????????????????? | | ?????????????????????????????##??????????????????? | | ??????????????????????????### ####???????????????? | | ???????????????#####??#### #???????????????? | | ??????????????## #?## # #???????????????? | | ?????????????## ### " #???????????????? | | ?????????????# # " @ R """ ??????????????? | | ?????????????# ! """?????????????? | | ??????? ?????## ## ##"?????????????? | | ???????" ????# ## " ###???????????????? | | ????? #??# ## """### ####"# ?????????????? | | ??????#" " ## ### = """"" """ #??????????? | | ?????# " " ### " "" #??????????? | | ??????# " # #?## " #" ## ????????? | | ??????## " #####??## ## "####????????????????? | | ???????## " ???###### ###""" #?????????????????? | | ???????# #????# """# #?#"" ##?????????????????? | | ???????## "#### ""# #?## ##??????????????????? | | ????????# "# """# ###??###???????????????????? | | ??????### "" """## #??????????????????????????? | | ??????# """""### "##?????????????????????????? | | ???????# "" # " ""#?????????????????????????? | | ???????# """ ""##?????????????????????????? | | ??????## """" ## " " #?????????????????????????? | | ?????## "" " &*& """" #?????????????????????????? | | #????# " [& " #?????????????????????????? | | ##???# #?????????????????????????? | | #???#### # ##?????????????????????????? | | #??????# ######??????????????????????????? | | ##????### #??????????????????????????????? | | ###??## ###??????????????????????????????? | +----------------------------------------------------+ Best States ------------- Heat Dissipation 25 Energy Generation 15 Energy Capacity 250 Matter Stores 300 Matter Capacity 300 Sight Range 16 Terrain Scan Density 10 Evasion (%) 55 Item Schematics ----------------- None Robot Schematics ------------------ None Fabricated ------------ Nothing Alien Tech Used ----------------- None Achievements -------------- None Challenges ------------ None Game ------ Seed FactoryHeavyMegatreads Manual? 0 Play Time 00:24:16 Cumulative 32.4 hours Start 2024.08.04 @ 21:35:52 End 2024.08.05 @ 19:48:16 Sessions 5 Manual Loads 0 Difficulty Rogue Special Mode None Game No. 23 Rogue 11 Adventurer 12 Explorer 0 Win Type - Total 0 Types 0/0/0/0/0/0/0/0/0 Lore% 15 Gallery% 22 Achievement% 21 Wizard Run 0 Options --------- Layout 1 ASCII 0 Keyboard 0 Movement Numpad Keybinds 0 Fullscreen 1 Font 24/Smallcaps Map View 50x35 Zoom Use 0% Tactical HUD 0 Map Filters NONE Filters NONE Steam 1 RUN: 95ded65b-0f19-4e91-8f81-0ea5a1b097e4